[Event "*** Titled Tuesday Blitz"]
[Site "Chess.com"]
[Date "2021.02.02"]
[Round "10"]
[White "AntonovaNadezhda"]
[Black "tylityli"]
[Result "0-1"]
[WhiteElo "2141"]
[BlackElo "2294"]
[TimeControl "180+1"]
[EndTime "11:55:52 PST"]
[Termination "tylityli won by resignation"]

1. b3 {[%clk 0:02:59.8]} 1... e5 {[%clk 0:02:58.7]} 2. Bb2 {[%clk 0:02:59.5]}
2... Nc6 {[%clk 0:02:58.9]} 3. e3 {[%clk 0:02:59]} 3... g6 {[%clk 0:02:58.6]} 4.
Bb5 {[%clk 0:02:57.9]} 4... Bg7 {[%clk 0:02:58.1]} 5. d4 {[%clk 0:02:54.8]} 5...
exd4 {[%clk 0:02:52.4]} 6. Nf3 {[%clk 0:02:52.5]} 6... Nge7 {[%clk 0:02:48.9]}
7. Nxd4 {[%clk 0:02:48.6]} 7... O-O {[%clk 0:02:44.4]} 8. O-O {[%clk 0:02:47.1]}
8... d6 {[%clk 0:02:37.8]} 9. Nxc6 {[%clk 0:02:27.4]} 9... bxc6 {[%clk
0:02:35.4]} 10. Bxg7 {[%clk 0:02:26.9]} 10... Kxg7 {[%clk 0:02:34.9]} 11. Be2
{[%clk 0:02:24.5]} 11... c5 {[%clk 0:02:34.1]} 12. c4 {[%clk 0:02:22.7]} 12...
Bb7 {[%clk 0:02:33.6]} 13. Nc3 {[%clk 0:02:20.6]} 13... Nf5 {[%clk 0:02:29.2]}
14. Bf3 {[%clk 0:02:19.9]} 14... Bxf3 {[%clk 0:02:27.2]} 15. Qxf3 {[%clk
0:02:19.5]} 15... Qe8 {[%clk 0:02:13]} 16. Nd5 {[%clk 0:02:14.5]} 16... Rc8
{[%clk 0:02:03.6]} 17. Qe2 {[%clk 0:02:07]} 17... c6 {[%clk 0:01:59.3]} 18. Qb2+
{[%clk 0:01:46.2]} 18... f6 {[%clk 0:01:58.1]} 19. Nc3 {[%clk 0:01:40]} 19...
Qe5 {[%clk 0:01:56.9]} 20. Na4 {[%clk 0:01:31.6]} 20... Rfd8 {[%clk 0:01:52.5]}
21. Rfd1 {[%clk 0:01:22.5]} 21... Kf7 {[%clk 0:01:35.3]} 22. Rac1 {[%clk
0:01:12]} 22... Nh4 {[%clk 0:01:32.6]} 23. Qd2 {[%clk 0:00:45.2]} 23... Qg5
{[%clk 0:01:30.2]} 24. f4 {[%clk 0:00:41.6]} 24... Nf3+ {[%clk 0:01:19.6]} 25.
Kf2 {[%clk 0:00:40.8]} 25... Nxd2 {[%clk 0:01:18.2]} 26. fxg5 {[%clk 0:00:40.5]}
26... Ne4+ {[%clk 0:01:18.3]} 27. Ke2 {[%clk 0:00:38.3]} 27... Nxg5 {[%clk
0:01:19]} 28. h4 {[%clk 0:00:25.3]} 28... Ne4 {[%clk 0:01:17.4]} 29. Kf3 {[%clk
0:00:22.7]} 29... f5 {[%clk 0:01:16.2]} 30. Rd3 {[%clk 0:00:19.3]} 30... Ke6
{[%clk 0:01:15.6]} 31. Rcd1 {[%clk 0:00:19.6]} 31... Nf6 {[%clk 0:01:07.7]} 32.
Nxc5+ {[%clk 0:00:15.3]} 32... Ke7 {[%clk 0:01:07.2]} 33. Na4 {[%clk 0:00:12.8]}
33... Ne4 {[%clk 0:01:05.4]} 34. g4 {[%clk 0:00:09.4]} 34... Rg8 {[%clk
0:01:01.6]} 35. gxf5 {[%clk 0:00:04.3]} 35... gxf5 {[%clk 0:01:01.2]} 36. c5
{[%clk 0:00:03.9]} 36... d5 {[%clk 0:00:58.6]} 37. Nc3 {[%clk 0:00:03.5]} 37...
Ke6 {[%clk 0:00:58]} 38. Nxe4 {[%clk 0:00:03.6]} 38... fxe4+ {[%clk 0:00:57.3]}
0-1

[Event "*** Titled Tuesday Blitz"]
[Site "Chess.com"]
[Date "2021.02.02"]
[Round "10"]
[White "FearNoEvil12"]
[Black "WilliamSchill"]
[Result "0-1"]
[WhiteElo "2173"]
[BlackElo "1992"]
[TimeControl "180+1"]
[EndTime "11:55:57 PST"]
[Termination "WilliamSchill won by resignation"]

1. e4 {[%clk 0:03:00.9]} 1... c5 {[%clk 0:02:59.4]} 2. Nc3 {[%clk 0:03:00]} 2...
Nc6 {[%clk 0:02:59.3]} 3. f4 {[%clk 0:03:00.5]} 3... g6 {[%clk 0:02:59]} 4. Nf3
{[%clk 0:03:00.9]} 4... Bg7 {[%clk 0:02:59.2]} 5. Bc4 {[%clk 0:03:01.1]} 5... e6
{[%clk 0:02:59]} 6. f5 {[%clk 0:03:01.6]} 6... Nge7 {[%clk 0:02:58.3]} 7. fxg6
{[%clk 0:03:00.8]} 7... hxg6 {[%clk 0:02:52.9]} 8. d3 {[%clk 0:03:01.1]} 8... d5
{[%clk 0:02:52.6]} 9. Bb3 {[%clk 0:02:59.8]} 9... b5 {[%clk 0:02:42.1]} 10. O-O
{[%clk 0:02:58]} 10... c4 {[%clk 0:02:39.7]} 11. dxc4 {[%clk 0:02:57]} 11...
dxc4 {[%clk 0:02:34.5]} 12. Qxd8+ {[%clk 0:02:56]} 12... Nxd8 {[%clk 0:02:19.8]}
13. Nxb5 {[%clk 0:02:55.9]} 13... cxb3 {[%clk 0:02:19.9]} 14. Nc7+ {[%clk
0:02:54.8]} 14... Kd7 {[%clk 0:02:19.3]} 15. Nxa8 {[%clk 0:02:55.3]} 15... Bb7
{[%clk 0:02:11.4]} 16. axb3 {[%clk 0:02:54.2]} 16... Bxa8 {[%clk 0:01:59.6]} 17.
Rxa7+ {[%clk 0:02:53.5]} 17... Bb7 {[%clk 0:01:59.6]} 18. Rd1+ {[%clk
0:02:52.8]} 18... Kc8 {[%clk 0:01:57.5]} 19. Bf4 {[%clk 0:02:48.3]} 19... Nec6
{[%clk 0:01:46.8]} 20. Ra4 {[%clk 0:02:38.9]} 20... Bxb2 {[%clk 0:01:29.9]} 21.
h3 {[%clk 0:02:36]} 21... f6 {[%clk 0:01:19.3]} 22. Be3 {[%clk 0:02:30.9]} 22...
Be5 {[%clk 0:01:10.9]} 23. Kf2 {[%clk 0:02:29.5]} 23... Bc7 {[%clk 0:01:09.1]}
24. Bc5 {[%clk 0:02:25.4]} 24... e5 {[%clk 0:01:07.2]} 25. Ke3 {[%clk
0:02:23.7]} 25... Ne6 {[%clk 0:01:07.2]} 26. b4 {[%clk 0:02:15.1]} 26... Re8
{[%clk 0:00:53.8]} 27. Bd6 {[%clk 0:02:08.4]} 27... Bb6+ {[%clk 0:00:46.6]} 28.
Ke2 {[%clk 0:01:56.7]} 28... Ncd4+ {[%clk 0:00:43.2]} 29. Nxd4 {[%clk
0:01:51.5]} 29... Nxd4+ {[%clk 0:00:43.3]} 30. Kd3 {[%clk 0:01:51]} 30... Kd7
{[%clk 0:00:29.7]} 31. Bc5 {[%clk 0:01:49.3]} 31... Bxc5 {[%clk 0:00:29.1]} 32.
bxc5 {[%clk 0:01:49.7]} 32... Kc7 {[%clk 0:00:24.5]} 33. c3 {[%clk 0:01:47.5]}
33... Ne6 {[%clk 0:00:23.1]} 34. Rb1 {[%clk 0:01:45.1]} 34... Nxc5+ {[%clk
0:00:22.2]} 35. Kc4 {[%clk 0:01:43.9]} 35... Nxa4 {[%clk 0:00:22.3]} 36. Rf1
{[%clk 0:01:36.8]} 36... Re6 {[%clk 0:00:21.5]} 37. Kb4 {[%clk 0:01:36.6]} 37...
Nb6 {[%clk 0:00:20.3]} 38. c4 {[%clk 0:01:36.4]} 38... Bxe4 {[%clk 0:00:20.2]}
39. c5 {[%clk 0:01:34.7]} 39... Nd7 {[%clk 0:00:20]} 40. Kb5 {[%clk 0:01:34]}
40... Bc6+ {[%clk 0:00:19.9]} 41. Kc4 {[%clk 0:01:33.4]} 41... f5 {[%clk
0:00:20.1]} 42. Ra1 {[%clk 0:01:32.8]} 42... e4 {[%clk 0:00:19.4]} 43. Ra7+
{[%clk 0:01:29]} 43... Kb8 {[%clk 0:00:19.3]} 44. Ra2 {[%clk 0:01:24.9]} 44...
Re5 {[%clk 0:00:19.1]} 45. Ra1 {[%clk 0:01:25.2]} 45... Rxc5+ {[%clk 0:00:18.7]}
46. Kd4 {[%clk 0:01:24.1]} 46... Rd5+ {[%clk 0:00:18.7]} 47. Ke3 {[%clk
0:01:23.1]} 47... Kc7 {[%clk 0:00:18.9]} 48. Ke2 {[%clk 0:01:23.1]} 48... Kd6
{[%clk 0:00:19]} 49. g4 {[%clk 0:01:21.5]} 49... Ke5 {[%clk 0:00:18.8]} 50. gxf5
{[%clk 0:01:20.9]} 50... gxf5 {[%clk 0:00:18.6]} 51. h4 {[%clk 0:01:20.9]} 51...
f4 {[%clk 0:00:18.7]} 52. Rh1 {[%clk 0:01:19]} 52... Bb5+ {[%clk 0:00:18.7]} 53.
Ke1 {[%clk 0:01:17.4]} 53... Ba4 {[%clk 0:00:16]} 54. Rh2 {[%clk 0:01:13.7]}
54... Rd1+ {[%clk 0:00:15.8]} 55. Ke2 {[%clk 0:01:13.3]} 55... f3+ {[%clk
0:00:15.3]} 56. Ke3 {[%clk 0:01:11.1]} 56... Rd3+ {[%clk 0:00:14.7]} 57. Kf2
{[%clk 0:01:10.8]} 57... Rd2+ {[%clk 0:00:15]} 58. Kg3 {[%clk 0:01:11]} 58...
Rxh2 {[%clk 0:00:14.9]} 59. Kxh2 {[%clk 0:01:11.6]} 59... Kf4 {[%clk 0:00:15.1]}
60. Kg1 {[%clk 0:01:11.2]} 60... e3 {[%clk 0:00:15.5]} 61. Kf1 {[%clk
0:01:10.4]} 61... f2 {[%clk 0:00:15.4]} 0-1

[Event "*** Titled Tuesday Blitz"]
[Site "Chess.com"]
[Date "2021.02.02"]
[Round "10"]
[White "petrkostenko"]
[Black "Homino"]
[Result "1-0"]
[WhiteElo "2434"]
[BlackElo "2290"]
[TimeControl "180+1"]
[EndTime "11:55:58 PST"]
[Termination "petrkostenko won by resignation"]

1. e4 {[%clk 0:02:53.4]} 1... c5 {[%clk 0:02:59.7]} 2. Nf3 {[%clk 0:02:49.9]}
2... Nc6 {[%clk 0:03:00.1]} 3. d4 {[%clk 0:02:49.4]} 3... cxd4 {[%clk 0:03:01]}
4. Nxd4 {[%clk 0:02:50]} 4... g6 {[%clk 0:03:01.6]} 5. c4 {[%clk 0:02:49.2]}
5... Nf6 {[%clk 0:03:01.3]} 6. Nc3 {[%clk 0:02:49.1]} 6... d6 {[%clk 0:03:01.8]}
7. Be2 {[%clk 0:02:48.2]} 7... Nxd4 {[%clk 0:03:02.3]} 8. Qxd4 {[%clk
0:02:47.8]} 8... Bg7 {[%clk 0:03:02.7]} 9. Be3 {[%clk 0:02:48.2]} 9... O-O
{[%clk 0:03:03.1]} 10. Qd2 {[%clk 0:02:48.9]} 10... Be6 {[%clk 0:03:03.4]} 11.
Rc1 {[%clk 0:02:48]} 11... a5 {[%clk 0:03:03.3]} 12. O-O {[%clk 0:02:35.7]}
12... a4 {[%clk 0:03:02.6]} 13. f4 {[%clk 0:02:35.8]} 13... Qa5 {[%clk
0:02:57.2]} 14. f5 {[%clk 0:02:24.8]} 14... Bd7 {[%clk 0:02:52.6]} 15. Bd3
{[%clk 0:02:17]} 15... Bc6 {[%clk 0:02:47.2]} 16. Nd5 {[%clk 0:02:15]} 16...
Qxd2 {[%clk 0:02:22.4]} 17. Bxd2 {[%clk 0:01:55.5]} 17... Nxd5 {[%clk
0:02:10.3]} 18. cxd5 {[%clk 0:01:54]} 18... Bd7 {[%clk 0:02:00.4]} 19. Bc3
{[%clk 0:01:53.4]} 19... Rfc8 {[%clk 0:01:53.5]} 20. Kf2 {[%clk 0:01:44.1]}
20... a3 {[%clk 0:01:38.3]} 21. Bxg7 {[%clk 0:01:38.5]} 21... Kxg7 {[%clk
0:01:23.9]} 22. b3 {[%clk 0:01:23.2]} 22... gxf5 {[%clk 0:01:13.8]} 23. exf5
{[%clk 0:01:21.8]} 23... Kf6 {[%clk 0:01:12.7]} 24. Ke3 {[%clk 0:01:22.4]} 24...
Rc5 {[%clk 0:00:58.4]} 25. Rxc5 {[%clk 0:01:15.1]} 25... dxc5 {[%clk 0:00:59.2]}
26. Kf4 {[%clk 0:01:15.5]} 26... b6 {[%clk 0:00:47.2]} 27. g4 {[%clk 0:01:14.6]}
27... h6 {[%clk 0:00:46.7]} 28. h4 {[%clk 0:01:14.4]} 28... Rg8 {[%clk 0:00:42]}
29. Re1 {[%clk 0:01:14.2]} 29... b5 {[%clk 0:00:38]} 30. Rg1 {[%clk 0:01:08.3]}
30... Rc8 {[%clk 0:00:34.2]} 31. g5+ {[%clk 0:01:07.3]} 31... hxg5+ {[%clk
0:00:33.9]} 32. hxg5+ {[%clk 0:01:07.4]} 32... Kg7 {[%clk 0:00:34.4]} 33. Rc1
{[%clk 0:01:07.1]} 33... Rc7 {[%clk 0:00:27.2]} 34. Be2 {[%clk 0:01:05.6]} 34...
Be8 {[%clk 0:00:24.5]} 35. Ke5 {[%clk 0:01:03.6]} 35... Rc8 {[%clk 0:00:22.9]}
36. f6+ {[%clk 0:01:01.2]} 36... exf6+ {[%clk 0:00:22.8]} 37. gxf6+ {[%clk
0:01:01.3]} 37... Kg6 {[%clk 0:00:22]} 38. Bd3+ {[%clk 0:00:58.9]} 38... Kg5
{[%clk 0:00:20.5]} 39. Bf5 {[%clk 0:00:53.5]} 39... Rd8 {[%clk 0:00:16.7]} 40.
Rg1+ {[%clk 0:00:51.9]} 40... Kh4 {[%clk 0:00:16]} 41. Kf4 {[%clk 0:00:48.1]}
1-0

[Event "*** Titled Tuesday Blitz"]
[Site "Chess.com"]
[Date "2021.02.02"]
[Round "10"]
[White "DenLaz"]
[Black "Aygehovit1992"]
[Result "1-0"]
[WhiteElo "2816"]
[BlackElo "2620"]
[TimeControl "180+1"]
[EndTime "11:55:59 PST"]
[Termination "DenLaz won by resignation"]

1. d4 {[%clk 0:03:00.9]} 1... Nf6 {[%clk 0:02:59.8]} 2. c4 {[%clk 0:02:59.5]}
2... g6 {[%clk 0:02:59.6]} 3. Nc3 {[%clk 0:02:58.1]} 3... d5 {[%clk 0:02:59.8]}
4. Bf4 {[%clk 0:02:57.5]} 4... Bg7 {[%clk 0:02:59.3]} 5. e3 {[%clk 0:02:57.9]}
5... O-O {[%clk 0:02:58.3]} 6. cxd5 {[%clk 0:02:56.8]} 6... Nxd5 {[%clk
0:02:57.8]} 7. Nxd5 {[%clk 0:02:57.5]} 7... Qxd5 {[%clk 0:02:58.6]} 8. Bxc7
{[%clk 0:02:58.2]} 8... Nc6 {[%clk 0:02:58.1]} 9. Ne2 {[%clk 0:02:57.2]} 9...
Bf5 {[%clk 0:02:50.8]} 10. Nc3 {[%clk 0:02:54.9]} 10... Qd7 {[%clk 0:02:50.9]}
11. Bg3 {[%clk 0:02:50.6]} 11... Rfd8 {[%clk 0:02:48.4]} 12. Be2 {[%clk
0:02:47.5]} 12... Rac8 {[%clk 0:02:13.6]} 13. O-O {[%clk 0:02:44.3]} 13... h5
{[%clk 0:02:09.1]} 14. Rc1 {[%clk 0:02:40.3]} 14... Qe8 {[%clk 0:01:52.5]} 15.
Qb3 {[%clk 0:02:27.1]} 15... b6 {[%clk 0:01:52.5]} 16. Rfd1 {[%clk 0:02:25.2]}
16... e5 {[%clk 0:01:51.3]} 17. d5 {[%clk 0:02:22.5]} 17... Na5 {[%clk
0:01:51.1]} 18. Qa3 {[%clk 0:02:19.8]} 18... Nc4 {[%clk 0:01:38.6]} 19. Bxc4
{[%clk 0:02:17.5]} 19... Rxc4 {[%clk 0:01:39.5]} 20. Qxa7 {[%clk 0:02:18.1]}
20... h4 {[%clk 0:01:39.7]} 21. b3 {[%clk 0:02:11.7]} 21... Rxc3 {[%clk
0:01:18.3]} 22. Rxc3 {[%clk 0:02:10.3]} 22... hxg3 {[%clk 0:01:19]} 23. hxg3
{[%clk 0:02:11.2]} 23... Bg4 {[%clk 0:01:13.7]} 24. Rd2 {[%clk 0:02:08.1]} 24...
Qb5 {[%clk 0:01:06.3]} 25. d6 {[%clk 0:02:00.5]} 25... e4 {[%clk 0:01:05.2]} 26.
Rc4 {[%clk 0:01:56.4]} 26... Bf5 {[%clk 0:00:59.7]} 27. Qe7 {[%clk 0:01:31.9]}
27... Re8 {[%clk 0:00:49.6]} 28. a4 {[%clk 0:01:23.8]} 28... Rxe7 {[%clk
0:00:29.1]} 29. dxe7 {[%clk 0:01:07.8]} 29... Qxb3 {[%clk 0:00:19.1]} 30. e8=Q+
{[%clk 0:01:06.5]} 30... Kh7 {[%clk 0:00:19.4]} 31. Rc1 {[%clk 0:01:05.4]} 31...
Be6 {[%clk 0:00:17.2]} 32. Qb5 {[%clk 0:01:02.8]} 32... Qa3 {[%clk 0:00:16.9]}
33. Rdc2 {[%clk 0:01:02.3]} 33... Bf6 {[%clk 0:00:14.2]} 34. Qxb6 {[%clk
0:01:00.2]} 34... Qxa4 {[%clk 0:00:14.3]} 35. Qc6 {[%clk 0:01:00.3]} 35... Qb3
{[%clk 0:00:13.5]} 36. Qxe4 {[%clk 0:00:58.9]} 36... Bf5 {[%clk 0:00:12.6]} 37.
Qc4 {[%clk 0:00:59]} 37... Bxc2 {[%clk 0:00:11.6]} 38. Qxc2 {[%clk 0:00:59.9]}
38... Qe6 {[%clk 0:00:12.5]} 39. Qc4 {[%clk 0:00:58.7]} 39... Qe7 {[%clk
0:00:12.9]} 40. Rd1 {[%clk 0:00:54.6]} 40... Kg7 {[%clk 0:00:13.1]} 41. Qc6
{[%clk 0:00:54.1]} 41... Bg5 {[%clk 0:00:10.6]} 42. Rd7 {[%clk 0:00:52.6]} 42...
Qf6 {[%clk 0:00:08.5]} 43. Qxf6+ {[%clk 0:00:52.1]} 1-0

[Event "*** Titled Tuesday Blitz"]
[Site "Chess.com"]
[Date "2021.02.02"]
[Round "10"]
[White "MasterMK73"]
[Black "imdvb6307"]
[Result "0-1"]
[WhiteElo "2223"]
[BlackElo "2380"]
[TimeControl "180+1"]
[EndTime "11:55:59 PST"]
[Termination "imdvb6307 won on time"]

1. e4 {[%clk 0:03:00.9]} 1... Nc6 {[%clk 0:03:00.2]} 2. Nf3 {[%clk 0:02:57.7]}
2... d6 {[%clk 0:03:00.1]} 3. h3 {[%clk 0:02:53.3]} 3... Nf6 {[%clk 0:03:00.1]}
4. Nc3 {[%clk 0:02:52.7]} 4... e5 {[%clk 0:03:00]} 5. d4 {[%clk 0:02:51]} 5...
Be7 {[%clk 0:02:57.2]} 6. Bb5 {[%clk 0:02:46.3]} 6... exd4 {[%clk 0:02:50.4]} 7.
Qxd4 {[%clk 0:02:41.6]} 7... Bd7 {[%clk 0:02:49.4]} 8. Bxc6 {[%clk 0:02:41.7]}
8... Bxc6 {[%clk 0:02:49.3]} 9. O-O {[%clk 0:02:41.4]} 9... Nd7 {[%clk
0:02:49.4]} 10. Nd5 {[%clk 0:02:29.5]} 10... Bf6 {[%clk 0:02:45.1]} 11. Qd1
{[%clk 0:02:16.7]} 11... O-O {[%clk 0:02:44.1]} 12. Re1 {[%clk 0:02:15.4]} 12...
Nb6 {[%clk 0:02:38.7]} 13. Nxf6+ {[%clk 0:01:55.4]} 13... Qxf6 {[%clk
0:02:37.5]} 14. Nd4 {[%clk 0:01:55.8]} 14... Bd7 {[%clk 0:02:30.6]} 15. Qd3
{[%clk 0:01:46]} 15... Rfe8 {[%clk 0:02:27.5]} 16. a4 {[%clk 0:01:41.4]} 16...
Nxa4 {[%clk 0:02:09]} 17. Nb3 {[%clk 0:01:27.9]} 17... Nxb2 {[%clk 0:01:51.5]}
18. Bxb2 {[%clk 0:01:25.6]} 18... Qxb2 {[%clk 0:01:50.4]} 19. Nd4 {[%clk
0:01:26.2]} 19... Qb4 {[%clk 0:01:43.9]} 20. Reb1 {[%clk 0:01:25.2]} 20... Qc5
{[%clk 0:01:43.7]} 21. Rxb7 {[%clk 0:01:23.8]} 21... Reb8 {[%clk 0:01:34.3]} 22.
Nb3 {[%clk 0:01:20.1]} 22... Qe5 {[%clk 0:01:28.4]} 23. Raxa7 {[%clk 0:01:13.7]}
23... Bc6 {[%clk 0:01:18.7]} 24. Rxc7 {[%clk 0:00:52]} 24... Rxa7 {[%clk
0:01:15.3]} 25. Rxa7 {[%clk 0:00:47.9]} 25... Bxe4 {[%clk 0:01:14.9]} 26. Qc4
{[%clk 0:00:43.5]} 26... Bd5 {[%clk 0:00:59.7]} 27. Qc7 {[%clk 0:00:34.9]} 27...
Re8 {[%clk 0:00:57.6]} 28. Qd7 {[%clk 0:00:21.2]} 28... h5 {[%clk 0:00:52.4]}
29. Ra5 {[%clk 0:00:14.7]} 29... Re6 {[%clk 0:00:38.3]} 30. Qc8+ {[%clk
0:00:12.4]} 30... Kh7 {[%clk 0:00:37.4]} 31. c4 {[%clk 0:00:09.3]} 31... Qe1+
{[%clk 0:00:36.6]} 32. Kh2 {[%clk 0:00:09.3]} 32... Bf3 {[%clk 0:00:35.8]} 0-1

[Event "*** Titled Tuesday Blitz"]
[Site "Chess.com"]
[Date "2021.02.02"]
[Round "10"]
[White "Walter_White_Poland"]
[Black "Vugar_Manafov"]
[Result "0-1"]
[WhiteElo "2348"]
[BlackElo "2666"]
[TimeControl "180+1"]
[EndTime "11:56:00 PST"]
[Termination "Vugar_Manafov won on time"]

1. e4 {[%clk 0:03:00.9]} 1... Nf6 {[%clk 0:02:59.5]} 2. e5 {[%clk 0:02:59.9]}
2... Nd5 {[%clk 0:02:57.6]} 3. d4 {[%clk 0:02:59.6]} 3... d6 {[%clk 0:02:54.8]}
4. Nf3 {[%clk 0:02:58.4]} 4... Nb6 {[%clk 0:02:53.9]} 5. Bd3 {[%clk 0:02:30]}
5... g6 {[%clk 0:02:53]} 6. h3 {[%clk 0:02:22.8]} 6... Bg7 {[%clk 0:02:53]} 7.
O-O {[%clk 0:02:22.6]} 7... O-O {[%clk 0:02:53]} 8. Re1 {[%clk 0:02:01.9]} 8...
Nc6 {[%clk 0:02:52.8]} 9. exd6 {[%clk 0:01:56.4]} 9... cxd6 {[%clk 0:02:53.7]}
10. Bg5 {[%clk 0:01:38.7]} 10... h6 {[%clk 0:02:52]} 11. Be3 {[%clk 0:01:38.6]}
11... e5 {[%clk 0:02:50.4]} 12. Qd2 {[%clk 0:01:08.7]} 12... Kh7 {[%clk
0:02:48]} 13. dxe5 {[%clk 0:00:52.5]} 13... dxe5 {[%clk 0:02:44.9]} 14. Nc3
{[%clk 0:00:36]} 14... f5 {[%clk 0:02:39.1]} 15. Bc5 {[%clk 0:00:24.6]} 15...
Re8 {[%clk 0:02:33.1]} 16. Bb5 {[%clk 0:00:22.9]} 16... Qxd2 {[%clk 0:02:31.5]}
17. Nxd2 {[%clk 0:00:23.8]} 17... Be6 {[%clk 0:02:30.1]} 18. Bxc6 {[%clk
0:00:20.4]} 18... bxc6 {[%clk 0:02:31]} 19. Nb3 {[%clk 0:00:19.3]} 19... Nd5
{[%clk 0:02:30.4]} 20. Nxd5 {[%clk 0:00:17.6]} 20... cxd5 {[%clk 0:02:31.3]} 21.
c3 {[%clk 0:00:16.2]} 21... f4 {[%clk 0:02:30]} 22. Bd6 {[%clk 0:00:14.6]} 22...
Bf7 {[%clk 0:02:29.7]} 23. Rad1 {[%clk 0:00:13.4]} 23... Rad8 {[%clk 0:02:29.8]}
24. Bc7 {[%clk 0:00:12.3]} 24... Rd7 {[%clk 0:02:29.7]} 25. Ba5 {[%clk
0:00:10.2]} 25... Rb7 {[%clk 0:02:29.4]} 26. Bb4 {[%clk 0:00:09.6]} 26... g5
{[%clk 0:02:28.9]} 27. Nc5 {[%clk 0:00:09.6]} 27... Rbb8 {[%clk 0:02:27.8]} 28.
Nd3 {[%clk 0:00:08.7]} 28... e4 {[%clk 0:02:26.9]} 29. Nc5 {[%clk 0:00:08.9]}
29... h5 {[%clk 0:02:21.6]} 30. Nb3 {[%clk 0:00:09]} 30... g4 {[%clk 0:02:20.7]}
31. hxg4 {[%clk 0:00:08.6]} 31... hxg4 {[%clk 0:02:21.6]} 32. Nd4 {[%clk
0:00:09.2]} 32... Kg6 {[%clk 0:02:20.7]} 33. Bd6 {[%clk 0:00:09.3]} 33... Rxb2
{[%clk 0:02:17]} 34. Bxf4 {[%clk 0:00:09.9]} 34... Rxa2 {[%clk 0:02:16.4]} 35.
Ra1 {[%clk 0:00:09.9]} 35... Rxa1 {[%clk 0:02:14.3]} 36. Rxa1 {[%clk 0:00:10.8]}
36... Re7 {[%clk 0:02:14.3]} 37. Be3 {[%clk 0:00:10.7]} 37... Kh7 {[%clk
0:02:12.9]} 38. Nc6 {[%clk 0:00:10.7]} 38... Rc7 {[%clk 0:02:10.9]} 39. Rxa7
{[%clk 0:00:09.8]} 39... Rxa7 {[%clk 0:02:05.5]} 40. Bxa7 {[%clk 0:00:10]} 40...
Bxc3 {[%clk 0:02:06.4]} 41. Bd4 {[%clk 0:00:10.6]} 41... Bd2 {[%clk 0:02:04.1]}
42. Ne5 {[%clk 0:00:10.8]} 42... Be6 {[%clk 0:02:03.6]} 43. Kh2 {[%clk
0:00:09.1]} 43... Bf4+ {[%clk 0:02:02.1]} 44. g3 {[%clk 0:00:08.5]} 44... Bd2
{[%clk 0:02:01.1]} 45. Nc6 {[%clk 0:00:07.9]} 45... Kg6 {[%clk 0:01:59.5]} 46.
Be3 {[%clk 0:00:08.1]} 46... Bc3 {[%clk 0:01:58.1]} 47. Nd4 {[%clk 0:00:08.1]}
47... Bd7 {[%clk 0:01:57.5]} 48. Ne2 {[%clk 0:00:08.6]} 48... Be5 {[%clk
0:01:53.9]} 49. Bd4 {[%clk 0:00:07.9]} 49... Kf5 {[%clk 0:01:50.8]} 50. Kg2
{[%clk 0:00:06.6]} 50... Bb5 {[%clk 0:01:50]} 51. Bxe5 {[%clk 0:00:05.9]} 51...
Kxe5 {[%clk 0:01:50.7]} 52. Nc3 {[%clk 0:00:06.4]} 52... Bc4 {[%clk 0:01:48.1]}
53. Nb1 {[%clk 0:00:06.3]} 53... d4 {[%clk 0:01:47.5]} 54. Nd2 {[%clk
0:00:04.6]} 54... Be2 {[%clk 0:01:47.7]} 55. f3 {[%clk 0:00:04.3]} 55... gxf3+
{[%clk 0:01:46.5]} 56. Kh3 {[%clk 0:00:03.6]} 56... e3 {[%clk 0:01:46.5]} 57.
Nb3 {[%clk 0:00:03.5]} 57... f2 {[%clk 0:01:46.8]} 0-1

[Event "*** Titled Tuesday Blitz"]
[Site "Chess.com"]
[Date "2021.02.02"]
[Round "10"]
[White "VladimirBugayev"]
[Black "GMMarcinDziuba"]
[Result "1/2-1/2"]
[WhiteElo "2275"]
[BlackElo "2578"]
[TimeControl "180+1"]
[EndTime "11:56:01 PST"]
[Termination "Game drawn by agreement"]

1. e4 {[%clk 0:03:00.9]} 1... c6 {[%clk 0:02:59.3]} 2. d4 {[%clk 0:03:00.3]}
2... d5 {[%clk 0:02:59.5]} 3. exd5 {[%clk 0:03:01]} 3... cxd5 {[%clk 0:02:59.6]}
4. Bd3 {[%clk 0:03:01.3]} 4... g6 {[%clk 0:02:58.3]} 5. Nf3 {[%clk 0:02:53.7]}
5... Bg7 {[%clk 0:02:58.1]} 6. O-O {[%clk 0:02:52.8]} 6... Nf6 {[%clk 0:02:58]}
7. c3 {[%clk 0:02:46.7]} 7... O-O {[%clk 0:02:57.6]} 8. Re1 {[%clk 0:02:46.4]}
8... Bg4 {[%clk 0:02:56.6]} 9. h3 {[%clk 0:02:45.3]} 9... Bxf3 {[%clk
0:02:55.8]} 10. Qxf3 {[%clk 0:02:45.9]} 10... Nc6 {[%clk 0:02:53.1]} 11. a4
{[%clk 0:02:34.7]} 11... Re8 {[%clk 0:02:46.9]} 12. Bf4 {[%clk 0:02:20.9]} 12...
Qb6 {[%clk 0:02:20.1]} 13. Bb5 {[%clk 0:02:10.8]} 13... a6 {[%clk 0:02:17.5]}
14. Bxc6 {[%clk 0:02:10.4]} 14... bxc6 {[%clk 0:02:17.4]} 15. Qe2 {[%clk
0:02:01.5]} 15... c5 {[%clk 0:02:14.7]} 16. dxc5 {[%clk 0:01:56.8]} 16... Qxc5
{[%clk 0:02:14.4]} 17. Be5 {[%clk 0:01:51.9]} 17... Ne4 {[%clk 0:02:02.2]} 18.
Bxg7 {[%clk 0:01:50.7]} 18... Kxg7 {[%clk 0:02:03.1]} 19. Nd2 {[%clk 0:01:44.5]}
19... Nxd2 {[%clk 0:02:01.9]} 20. Qxd2 {[%clk 0:01:44.5]} 20... Rab8 {[%clk
0:02:00.5]} 21. Re2 {[%clk 0:01:25.3]} 21... e6 {[%clk 0:01:59.5]} 22. Qf4
{[%clk 0:01:15.4]} 22... Qe7 {[%clk 0:01:50.1]} 23. Rae1 {[%clk 0:01:11.8]}
23... Qf6 {[%clk 0:01:49.2]} 24. Qc7 {[%clk 0:01:04]} 24... Rec8 {[%clk
0:01:43.9]} 25. Qa7 {[%clk 0:01:02.9]} 25... Qf4 {[%clk 0:01:34.1]} 26. Qxa6
{[%clk 0:00:53.6]} 26... Ra8 {[%clk 0:01:32.8]} 27. Qb7 {[%clk 0:00:51.1]} 27...
Qxa4 {[%clk 0:01:32.1]} 28. Rxe6 {[%clk 0:00:47.1]} 28... Rab8 {[%clk
0:01:09.5]} 29. Qe7 {[%clk 0:00:45.9]} 29... Rxb2 {[%clk 0:00:55.3]} 30. Qf6+
{[%clk 0:00:43]} 30... Kg8 {[%clk 0:00:54.8]} 31. Re7 {[%clk 0:00:41.1]} 31...
Rf8 {[%clk 0:00:52.6]} 32. c4 {[%clk 0:00:34.9]} 32... Rd2 {[%clk 0:00:44.9]}
33. c5 {[%clk 0:00:31.5]} 33... Qd4 {[%clk 0:00:39.8]} 34. Qxd4 {[%clk
0:00:26.7]} 34... Rxd4 {[%clk 0:00:40.7]} 35. c6 {[%clk 0:00:26.7]} 35... Rc4
{[%clk 0:00:37.1]} 36. c7 {[%clk 0:00:26.9]} 36... Kg7 {[%clk 0:00:35.9]} 37.
Rd7 {[%clk 0:00:25.3]} 37... d4 {[%clk 0:00:33.2]} 38. Rd1 {[%clk 0:00:21.6]}
38... Rc8 {[%clk 0:00:31.7]} 39. R1xd4 {[%clk 0:00:20.6]} 39... R4xc7 {[%clk
0:00:31.6]} 40. Rxc7 {[%clk 0:00:20.4]} 40... Rxc7 {[%clk 0:00:32.5]} 41. Ra4
{[%clk 0:00:19.8]} 41... h5 {[%clk 0:00:32.7]} 42. h4 {[%clk 0:00:19.5]} 42...
Rc2 {[%clk 0:00:31.2]} 43. g3 {[%clk 0:00:19.1]} 1/2-1/2